[Event "*** SCC Grand Prix: Titled Tuesday Blitz"]
[Site "Chess.com"]
[Date "2020.09.29"]
[Round "10"]
[White "alexrustemov"]
[Black "maximnovik"]
[Result "1-0"]
[WhiteElo "2719"]
[BlackElo "2536"]
[TimeControl "180+1"]
[EndTime "11:54:56 PDT"]
[Termination "alexrustemov won by resignation"]

1. Nf3 {[%clk 0:03:00.9]} 1... Nf6 {[%clk 0:02:59.4]} 2. g3 {[%clk 0:03:00.4]}
2... c5 {[%clk 0:02:58.3]} 3. Bg2 {[%clk 0:03:00.1]} 3... g6 {[%clk 0:02:58.8]}
4. O-O {[%clk 0:02:58.9]} 4... Bg7 {[%clk 0:02:59.3]} 5. c4 {[%clk 0:02:58]}
5... O-O {[%clk 0:02:59.7]} 6. d4 {[%clk 0:02:56.1]} 6... d5 {[%clk 0:02:53.7]}
7. cxd5 {[%clk 0:02:44.6]} 7... Nxd5 {[%clk 0:02:52.5]} 8. Nc3 {[%clk
0:02:43.7]} 8... Nxc3 {[%clk 0:02:49]} 9. bxc3 {[%clk 0:02:44.6]} 9... Qa5
{[%clk 0:02:49.1]} 10. Qb3 {[%clk 0:02:26.9]} 10... Nc6 {[%clk 0:02:48.2]} 11.
Be3 {[%clk 0:02:24.2]} 11... Qa6 {[%clk 0:02:28.1]} 12. dxc5 {[%clk 0:02:19.1]}
12... Be6 {[%clk 0:02:25.2]} 13. Qc2 {[%clk 0:02:06.9]} 13... Bc4 {[%clk
0:02:09.3]} 14. Rfe1 {[%clk 0:01:54.3]} 14... Rfd8 {[%clk 0:02:08.4]} 15. Nd4
{[%clk 0:01:30.9]} 15... Rac8 {[%clk 0:01:52.5]} 16. Nxc6 {[%clk 0:01:27.5]}
16... bxc6 {[%clk 0:01:52.4]} 17. h4 {[%clk 0:01:21.5]} 17... Qa3 {[%clk
0:01:50.9]} 18. Rec1 {[%clk 0:01:06.2]} 18... Bb5 {[%clk 0:01:00.7]} 19. Rab1
{[%clk 0:01:01]} 19... Qa6 {[%clk 0:00:47.6]} 20. Bf3 {[%clk 0:00:59]} 20... h5
{[%clk 0:00:41]} 21. Kg2 {[%clk 0:00:56.7]} 21... Bf6 {[%clk 0:00:40.3]} 22. Rb4
{[%clk 0:00:50.8]} 22... Bc4 {[%clk 0:00:35.7]} 23. Ra4 {[%clk 0:00:43.6]} 23...
Qb5 {[%clk 0:00:23.1]} 24. Rb1 {[%clk 0:00:43.5]} 24... a6 {[%clk 0:00:16.2]}
25. Rxb5 {[%clk 0:00:42.5]} 25... axb5 {[%clk 0:00:16.3]} 26. Ra6 {[%clk
0:00:39.7]} 26... Bd5 {[%clk 0:00:15.7]} 27. Bxd5 {[%clk 0:00:37.6]} 27... Rxd5
{[%clk 0:00:16.1]} 28. c4 {[%clk 0:00:37.3]} 1-0

[Event "*** SCC Grand Prix: Titled Tuesday Blitz"]
[Site "Chess.com"]
[Date "2020.09.29"]
[Round "10"]
[White "ehrenfeld"]
[Black "DishonorOnYourCow"]
[Result "1-0"]
[WhiteElo "2521"]
[BlackElo "2402"]
[TimeControl "180+1"]
[EndTime "11:55:01 PDT"]
[Termination "ehrenfeld won by resignation"]

1. e4 {[%clk 0:03:00.9]} 1... c6 {[%clk 0:02:57.8]} 2. d4 {[%clk 0:03:00.6]}
2... d5 {[%clk 0:02:51.4]} 3. exd5 {[%clk 0:03:00.9]} 3... cxd5 {[%clk
0:02:51.3]} 4. Bd3 {[%clk 0:03:01]} 4... Nc6 {[%clk 0:02:51.2]} 5. c3 {[%clk
0:03:01.1]} 5... Nf6 {[%clk 0:02:51.5]} 6. Bf4 {[%clk 0:03:01]} 6... Bg4 {[%clk
0:02:50.2]} 7. Qb3 {[%clk 0:02:59.1]} 7... Qd7 {[%clk 0:02:43.5]} 8. Nd2 {[%clk
0:02:58.8]} 8... e6 {[%clk 0:02:41.8]} 9. Ngf3 {[%clk 0:02:58.3]} 9... Na5
{[%clk 0:02:09.3]} 10. Qc2 {[%clk 0:02:51.8]} 10... Bd6 {[%clk 0:02:05.1]} 11.
Ne5 {[%clk 0:02:32.2]} 11... Bxe5 {[%clk 0:02:01.3]} 12. dxe5 {[%clk 0:02:32.2]}
12... Nh5 {[%clk 0:02:00]} 13. Be3 {[%clk 0:02:31.2]} 13... O-O {[%clk
0:01:42.4]} 14. h3 {[%clk 0:02:20.5]} 14... Bf5 {[%clk 0:01:42]} 15. g4 {[%clk
0:02:20.2]} 15... Bxd3 {[%clk 0:01:35.6]} 16. Qxd3 {[%clk 0:02:20.1]} 16... f6
{[%clk 0:01:30.2]} 17. gxh5 {[%clk 0:02:19.9]} 17... fxe5 {[%clk 0:01:30.4]} 18.
O-O-O {[%clk 0:02:02.7]} 18... Qa4 {[%clk 0:01:19.4]} 19. Kb1 {[%clk 0:02:01.9]}
19... Rad8 {[%clk 0:01:07.8]} 20. Qe2 {[%clk 0:01:49.8]} 20... d4 {[%clk
0:01:01.4]} 21. cxd4 {[%clk 0:01:28.7]} 21... exd4 {[%clk 0:01:02.3]} 22. Bg5
{[%clk 0:01:28.3]} 22... Rde8 {[%clk 0:00:58.7]} 23. Ne4 {[%clk 0:01:26]} 23...
e5 {[%clk 0:00:53.1]} 24. h6 {[%clk 0:01:24.4]} 24... Qc6 {[%clk 0:00:19.8]} 25.
hxg7 {[%clk 0:01:22.5]} 25... Rf7 {[%clk 0:00:20.1]} 26. Rhg1 {[%clk 0:01:20.1]}
26... Nc4 {[%clk 0:00:14.1]} 27. Nf6+ {[%clk 0:00:50.4]} 27... Rxf6 {[%clk
0:00:13.5]} 28. Bxf6 {[%clk 0:00:50.5]} 28... Qb5 {[%clk 0:00:14.1]} 29. Ka1
{[%clk 0:00:46.6]} 29... Re6 {[%clk 0:00:11.7]} 30. b3 {[%clk 0:00:40.4]} 30...
Rxf6 {[%clk 0:00:05.7]} 31. Qxc4+ {[%clk 0:00:39.6]} 1-0

[Event "*** SCC Grand Prix: Titled Tuesday Blitz"]
[Site "Chess.com"]
[Date "2020.09.29"]
[Round "10"]
[White "brunomorado"]
[Black "Resignify"]
[Result "1-0"]
[WhiteElo "2383"]
[BlackElo "2255"]
[TimeControl "180+1"]
[EndTime "11:55:01 PDT"]
[Termination "brunomorado won on time"]

1. d4 {[%clk 0:03:00.5]} 1... Nf6 {[%clk 0:02:59.5]} 2. Nc3 {[%clk 0:03:01.4]}
2... g6 {[%clk 0:02:55.7]} 3. e4 {[%clk 0:03:01.4]} 3... d6 {[%clk 0:02:55.6]}
4. g3 {[%clk 0:03:01.6]} 4... Bg7 {[%clk 0:02:55.7]} 5. Bg2 {[%clk 0:03:02.1]}
5... O-O {[%clk 0:02:55.7]} 6. Nge2 {[%clk 0:03:02.4]} 6... e5 {[%clk
0:02:55.4]} 7. O-O {[%clk 0:03:01.3]} 7... Nc6 {[%clk 0:02:55.5]} 8. h3 {[%clk
0:03:00.5]} 8... Nd7 {[%clk 0:02:47.6]} 9. Be3 {[%clk 0:02:59.3]} 9... a6 {[%clk
0:02:40]} 10. f4 {[%clk 0:02:57.6]} 10... Re8 {[%clk 0:02:15.6]} 11. d5 {[%clk
0:02:56.9]} 11... Ne7 {[%clk 0:02:03.4]} 12. f5 {[%clk 0:02:56.3]} 12... f6
{[%clk 0:01:54.5]} 13. fxg6 {[%clk 0:02:55.3]} 13... hxg6 {[%clk 0:01:51.3]} 14.
Qd2 {[%clk 0:02:53.5]} 14... Kh7 {[%clk 0:01:48.7]} 15. g4 {[%clk 0:02:42.6]}
15... Ng8 {[%clk 0:01:39.5]} 16. Ng3 {[%clk 0:02:35.7]} 16... Bh6 {[%clk
0:01:36.9]} 17. g5 {[%clk 0:02:10.9]} 17... Bg7 {[%clk 0:00:35.7]} 18. h4 {[%clk
0:01:56.2]} 18... Rf8 {[%clk 0:00:29.5]} 19. h5 {[%clk 0:01:54.6]} 19... Nc5
{[%clk 0:00:20.9]} 20. hxg6+ {[%clk 0:01:41.6]} 20... Kxg6 {[%clk 0:00:20.5]}
21. Qe2 {[%clk 0:01:34.5]} 21... Kf7 {[%clk 0:00:09.5]} 22. Qh5+ {[%clk
0:01:30.6]} 22... Ke7 {[%clk 0:00:09.4]} 23. Qh7 {[%clk 0:01:29.8]} 23... Rf7
{[%clk 0:00:09.6]} 24. g6 {[%clk 0:01:28.5]} 24... Qf8 {[%clk 0:00:03.2]} 25.
gxf7 {[%clk 0:01:22.4]} 25... Qxf7 {[%clk 0:00:04.1]} 26. Bxc5 {[%clk
0:01:17.2]} 26... dxc5 {[%clk 0:00:04]} 27. Bh3 {[%clk 0:01:15.9]} 27... Bxh3
{[%clk 0:00:01.8]} 28. Qxh3 {[%clk 0:01:16.8]} 28... Nh6 {[%clk 0:00:02.1]} 29.
Kf2 {[%clk 0:01:09.2]} 29... Rg8 {[%clk 0:00:02.6]} 30. Nf5+ {[%clk 0:01:04.5]}
30... Nxf5 {[%clk 0:00:02]} 31. Qxf5 {[%clk 0:01:05.4]} 31... Bh6 {[%clk
0:00:02.3]} 32. Rg1 {[%clk 0:01:03.8]} 32... Rg5 {[%clk 0:00:01.1]} 33. Rxg5
{[%clk 0:01:03.3]} 33... Bxg5 {[%clk 0:00:02]} 34. Rh1 {[%clk 0:01:03.5]} 34...
Kd6 {[%clk 0:00:01.2]} 35. Rh7 {[%clk 0:01:03.1]} 1-0

[Event "*** SCC Grand Prix: Titled Tuesday Blitz"]
[Site "Chess.com"]
[Date "2020.09.29"]
[Round "10"]
[White "Jospem"]
[Black "Dr-Bassem"]
[Result "1-0"]
[WhiteElo "2960"]
[BlackElo "2792"]
[TimeControl "180+1"]
[EndTime "11:55:02 PDT"]
[Termination "Jospem won on time"]

1. e4 {[%clk 0:03:00.9]} 1... e5 {[%clk 0:02:59.1]} 2. Nf3 {[%clk 0:03:01.1]}
2... Nc6 {[%clk 0:02:59.7]} 3. Bb5 {[%clk 0:03:00.4]} 3... a6 {[%clk 0:02:59.9]}
4. Ba4 {[%clk 0:03:00.5]} 4... Nf6 {[%clk 0:03:00.5]} 5. d3 {[%clk 0:03:01]}
5... d6 {[%clk 0:02:59.7]} 6. c3 {[%clk 0:03:00.9]} 6... g6 {[%clk 0:02:54.6]}
7. O-O {[%clk 0:03:00.7]} 7... Bg7 {[%clk 0:02:55.1]} 8. h3 {[%clk 0:03:01.3]}
8... O-O {[%clk 0:02:55.3]} 9. Be3 {[%clk 0:03:01.6]} 9... Bd7 {[%clk
0:02:53.5]} 10. Nbd2 {[%clk 0:03:01.5]} 10... Kh8 {[%clk 0:02:52.1]} 11. d4
{[%clk 0:02:59.5]} 11... Qe8 {[%clk 0:02:48.7]} 12. Bc2 {[%clk 0:02:58.5]} 12...
Nh5 {[%clk 0:02:44.7]} 13. Re1 {[%clk 0:02:56.9]} 13... f5 {[%clk 0:02:35.7]}
14. dxe5 {[%clk 0:02:45.6]} 14... f4 {[%clk 0:01:48.4]} 15. Bd4 {[%clk
0:02:45.6]} 15... Nxe5 {[%clk 0:01:38.4]} 16. Nxe5 {[%clk 0:02:24.8]} 16... dxe5
{[%clk 0:01:39.3]} 17. Bc5 {[%clk 0:02:25]} 17... Rf6 {[%clk 0:01:39]} 18. Nf3
{[%clk 0:02:21.6]} 18... b6 {[%clk 0:01:28.1]} 19. Ba3 {[%clk 0:02:11]} 19...
Rd8 {[%clk 0:01:19.4]} 20. Qe2 {[%clk 0:02:07.3]} 20... h6 {[%clk 0:00:57.7]}
21. Rad1 {[%clk 0:02:05.8]} 21... g5 {[%clk 0:00:10]} 22. Rd5 {[%clk 0:01:40.2]}
22... g4 {[%clk 0:00:05.9]} 23. Rxe5 {[%clk 0:01:39]} 23... Qf7 {[%clk
0:00:03.2]} 24. Bb3 {[%clk 0:00:33.1]} 24... gxf3 {[%clk 0:00:02.8]} 25. Bxf7
{[%clk 0:00:33.5]} 25... fxe2 {[%clk 0:00:02.5]} 26. Bxh5 {[%clk 0:00:34.1]} 1-0

[Event "*** SCC Grand Prix: Titled Tuesday Blitz"]
[Site "Chess.com"]
[Date "2020.09.29"]
[Round "10"]
[White "PowerThinking2650"]
[Black "HouseOfDurin"]
[Result "1-0"]
[WhiteElo "2375"]
[BlackElo "2161"]
[TimeControl "180+1"]
[EndTime "11:55:02 PDT"]
[Termination "PowerThinking2650 won on time"]

1. e4 {[%clk 0:03:00.9]} 1... c5 {[%clk 0:02:59.9]} 2. Nf3 {[%clk 0:02:57.5]}
2... Nc6 {[%clk 0:03:00.5]} 3. d4 {[%clk 0:02:57.4]} 3... cxd4 {[%clk
0:03:01.4]} 4. Nxd4 {[%clk 0:02:57.9]} 4... e5 {[%clk 0:03:01.4]} 5. Nb5 {[%clk
0:02:57.5]} 5... d6 {[%clk 0:03:00.4]} 6. N1c3 {[%clk 0:02:56.8]} 6... a6 {[%clk
0:03:01]} 7. Na3 {[%clk 0:02:56.9]} 7... b5 {[%clk 0:03:01.7]} 8. Nd5 {[%clk
0:02:57.1]} 8... Nf6 {[%clk 0:03:02.3]} 9. Bg5 {[%clk 0:02:55.9]} 9... Be7
{[%clk 0:03:02.5]} 10. Bxf6 {[%clk 0:02:56.4]} 10... Bxf6 {[%clk 0:03:03.4]} 11.
c3 {[%clk 0:02:56.9]} 11... O-O {[%clk 0:03:03.2]} 12. Nc2 {[%clk 0:02:57]}
12... Rb8 {[%clk 0:03:01.9]} 13. h4 {[%clk 0:02:56.6]} 13... h6 {[%clk
0:02:36.4]} 14. g3 {[%clk 0:02:54.2]} 14... g6 {[%clk 0:02:17.5]} 15. b4 {[%clk
0:02:47.1]} 15... Bg7 {[%clk 0:02:06.4]} 16. h5 {[%clk 0:02:43.7]} 16... g5
{[%clk 0:02:05.8]} 17. g4 {[%clk 0:02:42.5]} 17... Be6 {[%clk 0:02:03.9]} 18.
Nce3 {[%clk 0:02:39.3]} 18... Ne7 {[%clk 0:01:46.6]} 19. a4 {[%clk 0:02:31.3]}
19... Nxd5 {[%clk 0:01:43.2]} 20. Nxd5 {[%clk 0:02:27.8]} 20... Bxd5 {[%clk
0:01:42.4]} 21. Qxd5 {[%clk 0:02:28.4]} 21... Qc8 {[%clk 0:01:31.8]} 22. Rh3
{[%clk 0:02:07]} 22... Qxg4 {[%clk 0:01:29.3]} 23. axb5 {[%clk 0:02:00.5]} 23...
axb5 {[%clk 0:01:28.8]} 24. Ra7 {[%clk 0:01:58.1]} 24... Qf4 {[%clk 0:00:45]}
25. Re3 {[%clk 0:01:47.7]} 25... Kh8 {[%clk 0:00:36]} 26. Bxb5 {[%clk
0:01:29.7]} 26... f5 {[%clk 0:00:22.7]} 27. Qxd6 {[%clk 0:01:10.3]} 27... Rxb5
{[%clk 0:00:13.7]} 28. Qd7 {[%clk 0:01:05.6]} 28... Rg8 {[%clk 0:00:06.1]} 29.
Qxb5 {[%clk 0:01:04.2]} 29... fxe4 {[%clk 0:00:06.3]} 30. Qe2 {[%clk 0:00:57.9]}
30... Rf8 {[%clk 0:00:02.1]} 31. Ra1 {[%clk 0:00:52.9]} 31... Qh2 {[%clk
0:00:01.8]} 32. Qf1 {[%clk 0:00:48]} 1-0

[Event "*** SCC Grand Prix: Titled Tuesday Blitz"]
[Site "Chess.com"]
[Date "2020.09.29"]
[Round "10"]
[White "Ginger_GM"]
[Black "Mikhail_Golubev"]
[Result "1-0"]
[WhiteElo "2706"]
[BlackElo "2478"]
[TimeControl "180+1"]
[EndTime "11:55:06 PDT"]
[Termination "Ginger_GM won by resignation"]

1. c4 {[%clk 0:03:00.3]} 1... g6 {[%clk 0:02:59.5]} 2. Nc3 {[%clk 0:02:59.5]}
2... Bg7 {[%clk 0:03:00.4]} 3. g3 {[%clk 0:02:59.1]} 3... e5 {[%clk 0:02:58.9]}
4. Bg2 {[%clk 0:02:58.8]} 4... d6 {[%clk 0:02:59.1]} 5. e4 {[%clk 0:02:58.4]}
5... Nc6 {[%clk 0:02:58.4]} 6. Nge2 {[%clk 0:02:57.8]} 6... Nge7 {[%clk
0:02:58.9]} 7. d3 {[%clk 0:02:57.5]} 7... O-O {[%clk 0:02:58.7]} 8. O-O {[%clk
0:02:57.6]} 8... f5 {[%clk 0:02:58.6]} 9. Nd5 {[%clk 0:02:53.5]} 9... Be6 {[%clk
0:02:54.9]} 10. Be3 {[%clk 0:02:50.9]} 10... Qd7 {[%clk 0:02:54.8]} 11. Qd2
{[%clk 0:02:49.1]} 11... Rf7 {[%clk 0:02:45.8]} 12. f3 {[%clk 0:02:41.2]} 12...
Raf8 {[%clk 0:02:27.6]} 13. b4 {[%clk 0:02:40.1]} 13... f4 {[%clk 0:02:19]} 14.
gxf4 {[%clk 0:02:39.8]} 14... exf4 {[%clk 0:01:34.6]} 15. Nexf4 {[%clk 0:02:33]}
15... Bxa1 {[%clk 0:01:31.3]} 16. Rxa1 {[%clk 0:02:32.4]} 16... Ne5 {[%clk
0:01:27.1]} 17. Rf1 {[%clk 0:01:50.9]} 17... c6 {[%clk 0:01:22.8]} 18. Nxe6
{[%clk 0:01:09.2]} 18... Qxe6 {[%clk 0:01:20]} 19. Nxe7+ {[%clk 0:01:08.8]}
19... Qxe7 {[%clk 0:01:17.7]} 20. Bg5 {[%clk 0:01:08.3]} 20... Qe6 {[%clk
0:01:11.6]} 21. f4 {[%clk 0:01:08.2]} 21... Qg4 {[%clk 0:01:05.7]} 22. Bh6
{[%clk 0:00:37.5]} 22... Re8 {[%clk 0:00:25.7]} 23. fxe5 {[%clk 0:00:35]} 23...
Rxe5 {[%clk 0:00:22.5]} 24. Rxf7 {[%clk 0:00:33.4]} 24... Kxf7 {[%clk
0:00:22.8]} 25. Qf4+ {[%clk 0:00:33]} 25... Qxf4 {[%clk 0:00:22.2]} 26. Bxf4
{[%clk 0:00:33.9]} 26... Rh5 {[%clk 0:00:22.2]} 27. Bf3 {[%clk 0:00:30.3]} 27...
Rh3 {[%clk 0:00:18.3]} 28. Kg2 {[%clk 0:00:28.4]} 28... Rxf3 {[%clk 0:00:11.5]}
29. Kxf3 {[%clk 0:00:28.3]} 1-0

[Event "*** SCC Grand Prix: Titled Tuesday Blitz"]
[Site "Chess.com"]
[Date "2020.09.29"]
[Round "10"]
[White "eljanov"]
[Black "Goryachkina"]
[Result "1-0"]
[WhiteElo "2820"]
[BlackElo "2657"]
[TimeControl "180+1"]
[EndTime "11:55:10 PDT"]
[Termination "eljanov won by resignation"]

1. e4 {[%clk 0:03:00.9]} 1... e6 {[%clk 0:02:59.8]} 2. d4 {[%clk 0:03:00.5]}
2... d5 {[%clk 0:02:59.8]} 3. e5 {[%clk 0:03:01.1]} 3... c5 {[%clk 0:02:59.5]}
4. c3 {[%clk 0:03:01.7]} 4... Nc6 {[%clk 0:02:59.5]} 5. Nf3 {[%clk 0:03:02.2]}
5... Nge7 {[%clk 0:02:59.2]} 6. dxc5 {[%clk 0:03:00.6]} 6... Ng6 {[%clk
0:02:54.6]} 7. b4 {[%clk 0:02:48.7]} 7... Ncxe5 {[%clk 0:02:44.8]} 8. Nxe5
{[%clk 0:02:47.6]} 8... Nxe5 {[%clk 0:02:44.6]} 9. Be3 {[%clk 0:02:43.9]} 9...
Be7 {[%clk 0:02:40.7]} 10. Nd2 {[%clk 0:02:41.1]} 10... O-O {[%clk 0:02:38.8]}
11. Be2 {[%clk 0:02:40.8]} 11... Bf6 {[%clk 0:02:31.1]} 12. O-O {[%clk
0:02:36.6]} 12... Bd7 {[%clk 0:02:25.8]} 13. Bd4 {[%clk 0:02:28.4]} 13... Nc6
{[%clk 0:02:19.9]} 14. Bxf6 {[%clk 0:02:28.4]} 14... Qxf6 {[%clk 0:02:19.8]} 15.
Qb3 {[%clk 0:02:23.5]} 15... Rfd8 {[%clk 0:01:58.4]} 16. Rac1 {[%clk 0:01:56]}
16... e5 {[%clk 0:01:35.8]} 17. Rfd1 {[%clk 0:01:43.8]} 17... Be6 {[%clk
0:01:33]} 18. b5 {[%clk 0:01:37.5]} 18... Ne7 {[%clk 0:01:27.5]} 19. c4 {[%clk
0:01:37.4]} 19... d4 {[%clk 0:01:20]} 20. Bf3 {[%clk 0:01:34.4]} 20... Rab8
{[%clk 0:01:15.3]} 21. Qa3 {[%clk 0:01:33.8]} 21... a6 {[%clk 0:00:29.5]} 22. c6
{[%clk 0:01:33.3]} 22... bxc6 {[%clk 0:00:28.9]} 23. Ne4 {[%clk 0:01:33.1]}
23... Qh4 {[%clk 0:00:19.9]} 24. g3 {[%clk 0:01:32.9]} 24... Qh6 {[%clk
0:00:18.6]} 25. Qxe7 {[%clk 0:01:32.7]} 25... cxb5 {[%clk 0:00:18.1]} 26. cxb5
{[%clk 0:01:32.5]} 26... axb5 {[%clk 0:00:18]} 27. a3 {[%clk 0:01:25.5]} 27...
Re8 {[%clk 0:00:16.1]} 28. Qg5 {[%clk 0:01:23]} 28... Qxg5 {[%clk 0:00:15.8]}
29. Nxg5 {[%clk 0:01:23.9]} 29... Bc4 {[%clk 0:00:16.1]} 30. Ne4 {[%clk
0:01:19.8]} 30... Red8 {[%clk 0:00:16.1]} 31. Nd2 {[%clk 0:01:19.1]} 31... Be6
{[%clk 0:00:14.5]} 32. Rc5 {[%clk 0:01:17.6]} 32... f6 {[%clk 0:00:14.1]} 33.
Rb1 {[%clk 0:01:16.5]} 33... Bd7 {[%clk 0:00:13.6]} 34. Rc7 {[%clk 0:01:07.6]}
34... Kf8 {[%clk 0:00:13]} 35. Rbc1 {[%clk 0:01:00.9]} 35... b4 {[%clk
0:00:12.7]} 36. axb4 {[%clk 0:00:59.4]} 36... Rxb4 {[%clk 0:00:13.4]} 37. Ra7
{[%clk 0:00:57.4]} 37... f5 {[%clk 0:00:10.5]} 38. Rcc7 {[%clk 0:00:54.7]} 38...
Ke8 {[%clk 0:00:09.7]} 39. Rxd7 {[%clk 0:00:53.1]} 1-0

[Event "*** SCC Grand Prix: Titled Tuesday Blitz"]
[Site "Chess.com"]
[Date "2020.09.29"]
[Round "10"]
[White "cassoulet"]
[Black "Evandro_Barbosa"]
[Result "1-0"]
[WhiteElo "2645"]
[BlackElo "2715"]
[TimeControl "180+1"]
[EndTime "11:55:10 PDT"]
[Termination "cassoulet won on time"]

1. e4 {[%clk 0:03:00.9]} 1... c5 {[%clk 0:02:59.7]} 2. Nf3 {[%clk 0:03:00.5]}
2... Nc6 {[%clk 0:03:00.3]} 3. Bb5 {[%clk 0:03:00]} 3... e6 {[%clk 0:03:00.4]}
4. Bxc6 {[%clk 0:02:58.8]} 4... bxc6 {[%clk 0:03:00.5]} 5. e5 {[%clk 0:02:59.5]}
5... Ne7 {[%clk 0:03:00.5]} 6. b3 {[%clk 0:02:59.6]} 6... Ng6 {[%clk 0:03:00.7]}
7. Bb2 {[%clk 0:03:00.1]} 7... Be7 {[%clk 0:03:01.1]} 8. d3 {[%clk 0:02:59.5]}
8... O-O {[%clk 0:03:01.6]} 9. Nbd2 {[%clk 0:02:59.5]} 9... f6 {[%clk
0:03:01.8]} 10. Qe2 {[%clk 0:02:56.5]} 10... Qc7 {[%clk 0:03:01.8]} 11. exf6
{[%clk 0:02:54.6]} 11... gxf6 {[%clk 0:03:01.3]} 12. O-O {[%clk 0:02:52.4]}
12... e5 {[%clk 0:03:01]} 13. Ne4 {[%clk 0:02:41.2]} 13... d6 {[%clk 0:03:00.8]}
14. Ng3 {[%clk 0:02:38]} 14... Nf4 {[%clk 0:02:58.1]} 15. Qe3 {[%clk 0:02:36.2]}
15... Kh8 {[%clk 0:02:51.8]} 16. Nh4 {[%clk 0:02:33.9]} 16... Rg8 {[%clk
0:02:45.2]} 17. Rfe1 {[%clk 0:02:22.1]} 17... Be6 {[%clk 0:02:30.6]} 18. c4
{[%clk 0:02:01.1]} 18... Qd7 {[%clk 0:02:25.5]} 19. Rad1 {[%clk 0:01:59.3]}
19... Bg4 {[%clk 0:02:15.2]} 20. f3 {[%clk 0:01:55.6]} 20... Be6 {[%clk
0:02:11.6]} 21. Rd2 {[%clk 0:01:47.6]} 21... Rg7 {[%clk 0:02:11]} 22. d4 {[%clk
0:01:31.9]} 22... cxd4 {[%clk 0:02:09.8]} 23. Rxd4 {[%clk 0:01:22.4]} 23... Ng6
{[%clk 0:00:36.1]} 24. Nxg6+ {[%clk 0:01:13.2]} 24... Rxg6 {[%clk 0:00:37]} 25.
Rd2 {[%clk 0:01:04.9]} 25... Rag8 {[%clk 0:00:37.1]} 26. f4 {[%clk 0:01:01.1]}
26... R6g7 {[%clk 0:00:16.1]} 27. fxe5 {[%clk 0:00:59.2]} 27... fxe5 {[%clk
0:00:11.4]} 28. Bxe5 {[%clk 0:00:49.8]} 28... dxe5 {[%clk 0:00:11.7]} 29. Rxd7
{[%clk 0:00:48.4]} 29... Bxd7 {[%clk 0:00:12.6]} 30. Qxe5 {[%clk 0:00:48.6]}
30... Be8 {[%clk 0:00:06.8]} 31. Nf5 {[%clk 0:00:46.7]} 1-0

[Event "*** SCC Grand Prix: Titled Tuesday Blitz"]
[Site "Chess.com"]
[Date "2020.09.29"]
[Round "10"]
[White "checkmatequen"]
[Black "awesomevishesh"]
[Result "0-1"]
[WhiteElo "2303"]
[BlackElo "2426"]
[TimeControl "180+1"]
[EndTime "11:55:10 PDT"]
[Termination "awesomevishesh won by checkmate"]

1. e4 {[%clk 0:03:00.9]} 1... c5 {[%clk 0:02:56.4]} 2. Nf3 {[%clk 0:02:59.1]}
2... d6 {[%clk 0:02:56.6]} 3. d4 {[%clk 0:02:57.7]} 3... cxd4 {[%clk 0:02:57.5]}
4. Nxd4 {[%clk 0:02:57.2]} 4... Nf6 {[%clk 0:02:56.5]} 5. Nc3 {[%clk 0:02:55.1]}
5... a6 {[%clk 0:02:56.7]} 6. Bg5 {[%clk 0:02:54.2]} 6... e6 {[%clk 0:02:56.3]}
7. f4 {[%clk 0:02:54.6]} 7... h6 {[%clk 0:02:56]} 8. Bh4 {[%clk 0:02:52.6]} 8...
Qb6 {[%clk 0:02:55.5]} 9. a3 {[%clk 0:02:50.2]} 9... Be7 {[%clk 0:02:53.8]} 10.
Bf2 {[%clk 0:02:49.2]} 10... Qc7 {[%clk 0:02:53.7]} 11. Qf3 {[%clk 0:02:49]}
11... Nbd7 {[%clk 0:02:52.9]} 12. O-O-O {[%clk 0:02:49.5]} 12... b5 {[%clk
0:02:52.6]} 13. g4 {[%clk 0:02:48.9]} 13... Bb7 {[%clk 0:02:52.1]} 14. Bg2
{[%clk 0:02:48.4]} 14... g5 {[%clk 0:02:51.2]} 15. h4 {[%clk 0:02:45.5]} 15...
gxf4 {[%clk 0:02:51.2]} 16. Qxf4 {[%clk 0:02:44.9]} 16... e5 {[%clk 0:02:40.6]}
17. Ndxb5 {[%clk 0:02:31.7]} 17... axb5 {[%clk 0:02:37.6]} 18. Nxb5 {[%clk
0:02:32.6]} 18... Qc6 {[%clk 0:02:25.6]} 19. Nxd6+ {[%clk 0:02:25.7]} 19... Bxd6
{[%clk 0:02:25.2]} 20. Qf5 {[%clk 0:02:19.3]} 20... Rc8 {[%clk 0:01:45]} 21. Rd2
{[%clk 0:01:58.8]} 21... Bc5 {[%clk 0:01:23.1]} 22. Bxc5 {[%clk 0:01:53]} 22...
Nxc5 {[%clk 0:01:14]} 23. Rhd1 {[%clk 0:01:47.1]} 23... Nb3+ {[%clk 0:01:12.6]}
24. Kb1 {[%clk 0:01:47]} 24... Nxd2+ {[%clk 0:01:12.6]} 25. Rxd2 {[%clk
0:01:47.9]} 25... Qe6 {[%clk 0:01:09.5]} 26. Qf1 {[%clk 0:01:40.5]} 26... Nxg4
{[%clk 0:00:59.5]} 27. Bh3 {[%clk 0:01:32.4]} 27... h5 {[%clk 0:00:59.2]} 28.
Qb5+ {[%clk 0:01:28.6]} 28... Bc6 {[%clk 0:00:58.8]} 29. Qa6 {[%clk 0:01:25.2]}
29... Bxe4 {[%clk 0:00:51.7]} 30. Rd6 {[%clk 0:01:13.8]} 30... Bxc2+ {[%clk
0:00:45.3]} 31. Ka1 {[%clk 0:01:10.1]} 31... Qc4 {[%clk 0:00:41.1]} 32. Qa7
{[%clk 0:01:04]} 32... Qc7 {[%clk 0:00:34.4]} 33. Qa6 {[%clk 0:01:00.3]} 33...
Bf5 {[%clk 0:00:22.1]} 34. Bg2 {[%clk 0:00:54.9]} 34... Qc1+ {[%clk 0:00:20.9]}
35. Ka2 {[%clk 0:00:55.2]} 35... Bb1+ {[%clk 0:00:15.2]} 36. Kb3 {[%clk
0:00:53.5]} 36... Qc2+ {[%clk 0:00:15.4]} 37. Kb4 {[%clk 0:00:53]} 37... Qxb2+
{[%clk 0:00:15.5]} 38. Ka5 {[%clk 0:00:51.2]} 38... Rc5+ {[%clk 0:00:14.8]} 39.
Ka4 {[%clk 0:00:49.8]} 39... Bc2# {[%clk 0:00:14.6]} 0-1